lending/lending_fUSD_20250424
["ID","MTS","AMOUNT","RATE_DAILY","PERIOD"]
[358881350,1745517037411,-200.0,0.00019551,2]
[358881351,1745517037422,-1200.0,0.00019889,2]
[358881352,1745517037431,-300.0,0.00019889,2]
[358881353,1745517037441,-351.43634205,0.00019889,2]
[358881354,1745517037451,-500.0,0.00019889,2]
[358881355,1745517037461,-500.0,0.00019889,2]
[358881356,1745517037472,-500.0,0.00019889,2]
[358881357,1745517037482,-500.0,0.00019889,2]
[358881358,1745517037493,-174.81935069,0.00019889,2]
[358881359,1745517037506,-500.0,0.00019889,2]
[358881360,1745517037516,-500.0,0.00019889,2]
[358881361,1745517037525,-500.0,0.00019889,2]
[358881362,1745517037535,-500.0,0.00019889,2]
[358881363,1745517037544,-500.0,0.00019889,2]
[358881364,1745517037554,-500.0,0.00019889,2]
[358881365,1745517037564,-500.0,0.00019889,2]
[358881366,1745517037573,-500.0,0.00019889,2]
[358881367,1745517037583,-500.0,0.00019889,2]
[358881368,1745517037593,-455.02503294,0.00019889,2]
[358881372,1745517037695,-44.97496706,0.00019889,2]
[358881375,1745517037705,-500.0,0.00019889,2]
[358881377,1745517037715,-500.0,0.00019889,2]
[358881379,1745517037724,-184.69053105,0.00019889,2]
[358881406,1745517039629,-315.30946895,0.00019889,2]
[358881407,1745517039643,-500.0,0.00019889,2]
[358881408,1745517039653,-500.0,0.00019889,2]
[358881409,1745517039664,-500.0,0.00019889,2]
[358881410,1745517039675,-500.0,0.00019889,2]
[358881411,1745517039685,-500.0,0.00019889,2]
[358881412,1745517039698,-500.0,0.00019889,2]
[358881413,1745517039708,-500.0,0.00019889,2]
[358881414,1745517039719,-500.0,0.00019889,2]
[358881415,1745517039728,-500.0,0.00019889,2]
[358881416,1745517039738,-500.0,0.00019889,2]
[358881417,1745517039748,-500.0,0.00019889,2]
[358881418,1745517039759,-500.0,0.00019889,2]
[358881419,1745517039769,-500.0,0.00019889,2]
[358881420,1745517039778,-500.0,0.00019889,2]
[358881421,1745517039795,-500.0,0.00019889,2]
[358881422,1745517039805,-500.0,0.00019889,2]
[358881423,1745517039816,-500.0,0.00019889,2]
[358881424,1745517039826,-500.0,0.00019889,2]
[358881425,1745517039837,-500.0,0.00019889,2]
[358881426,1745517039847,-500.0,0.00019889,2]
[358881427,1745517039857,-500.0,0.00019889,2]
[358881428,1745517039867,-500.0,0.00019889,2]
[358881429,1745517039877,-500.0,0.00019889,2]
[358881430,1745517039888,-500.0,0.00019889,2]
[358881431,1745517039899,-500.0,0.00019889,2]
[358881432,1745517039909,-500.0,0.00019889,2]
[358881433,1745517039921,-526.6761195,0.00019889,2]
[358881434,1745517039932,-500.0,0.00019889,2]
[358881435,1745517039942,-850.0,0.0001989,2]
[358881436,1745517039953,-200.0,0.00019892,2]
[358881437,1745517039964,-1786.89165913,0.00019894,2]
[358881438,1745517039974,-200.0,0.00019894,2]
[358881439,1745517039990,-265.9975,0.000199,2]
[358881440,1745517040001,-250.0,0.00019936,2]
[358881441,1745517040011,-25626.01582115,0.00019951,2]
[358881442,1745517040021,-1178.90758356,0.0001997,2]
[358881443,1745517040031,-1786.89165913,0.00019971,2]
[358881444,1745517040042,-25626.01582115,0.00019978,2]
[358881445,1745517040051,-1178.90758356,0.00019998,2]
[358881446,1745517040077,-200.0,0.000201,2]
[358881447,1745517040099,-200.0,0.0002051,2]
[358881448,1745517040117,-4849.63169898,0.00020709,2]
[358881449,1745517040135,-179.26161846,0.00020709,2]
[358881450,1745517040154,-200.0,0.0002071,2]
[358881451,1745517040172,-9999.99,0.0002071,2]
[358881452,1745517040192,-150.99,0.0002071,2]
[358881453,1745517040216,-9999.99,0.0002071,2]
[358881454,1745517040230,-5367.18,0.0002071,2]
[358881455,1745517040247,-255.06,0.0002071,2]
[358881456,1745517040265,-76382.12028894,0.0002071,2]
[358881457,1745517040281,-306.36923936,0.00020773,2]
[358881458,1745517040299,-500.0,0.00020773,2]
[358881459,1745517040316,-500.0,0.00020773,2]
[358881460,1745517040335,-161.1858119,0.00020773,2]
[358881463,1745517040353,-361.74088993,0.00020773,2]
[358881465,1745517040371,-500.0,0.00020773,2]
[358881466,1745517040387,-200.0,0.0002081,2]
[358881467,1745517040409,-15380.8463547,0.000209,3]
[358881468,1745517040429,-9391.97053971,0.00020945,2]
[358881469,1745517040447,-215.54,0.00021,2]
[358881470,1745517040461,-200.0,0.00021133,2]
[358881471,1745517040475,-154.36900361,0.00021339,2]
[358881472,1745517040493,-500.0,0.000214,2]
[358881473,1745517040506,-506.72470226,0.000214,2]
[358881474,1745517040518,-396.78,0.00021475,2]
[358881475,1745517040542,-487.88,0.000215,2]
[358881476,1745517040557,-420.0,0.00021659,2]
[358881477,1745517040571,-1680.0,0.00021764,2]
[358881478,1745517040585,-200.0,0.0002188,2]
[358881479,1745517040638,-507.77188451,0.00021883,2]
[358881480,1745517040658,-250.0,0.00021889,2]
[358881481,1745517040678,-150.0,0.00021917,2]
[358881482,1745517040698,-893.78133293,0.00022221,2]
[358881483,1745517040717,-200.0,0.00022776,2]
[358881484,1745517040735,-20696.53,0.00022776,2]
[358881485,1745517040752,-1452.74,0.00022776,2]
[358881486,1745517040770,-155.21,0.00022776,2]
[358881487,1745517040788,-187.29,0.0002281,2]
[358881488,1745517040807,-1303.42800144,0.00022835,2]
[358881489,1745517040824,-7984.32,0.0002301,2]
[358881490,1745517040841,-516.06438202,0.00023012,2]
[358881491,1745517040858,-1000.0,0.00023089,2]
[358881492,1745517040876,-158.34,0.00023523,2]
[358881493,1745517040892,-1669.08,0.00023571,2]
[358881494,1745517040908,-587.0,0.00023587,2]
[358881495,1745517040926,-23900.0,0.00023668,2]
[358881496,1745517040942,-396.78,0.00023739,2]
[358881497,1745517040958,-2351.0,0.00023815,2]
[358881498,1745517040974,-200.0,0.000239,2]
[358881499,1745517040989,-803.99,0.00023941,2]
[358881500,1745517041004,-250.0,0.00023952,2]
[358881501,1745517041020,-877.08,0.00023968,2]
[358881502,1745517041036,-200.0,0.00024366,2]
[358881503,1745517041051,-1000.0,0.00024658,2]
[358881504,1745517041066,-1000.0,0.00024658,2]
[358881505,1745517041081,-151.0,0.000248,7]
[358881506,1745517041096,-158.084154,0.000248,7]
[358881507,1745517041111,-151.0,0.000248,7]
[358881508,1745517041126,-167.520365,0.000248,7]
[358881509,1745517041140,-167.520365,0.000248,7]
[358881510,1745517041156,-551.81,0.00024842,2]
[358881511,1745517041170,-300.0,0.00025342,2]
[358881512,1745517041186,-158.34,0.00025464,2]
[358881513,1745517041202,-1000.0,0.00025976,2]
[358881514,1745517041217,-313.48203147,0.00026003,2]
[358881515,1745517041285,-83.29796853,0.00026003,2]
[358881516,1745517041303,-818.00079632,0.00026049,2]
[358881517,1745517041347,-879.56114536,0.00026049,2]
[358881528,1745517042655,-3909.406,0.00026049,2]
[358881536,1745517045797,-2370.50597569,0.000209,2]
[358881537,1745517045807,-4922.14205832,0.00026049,2]
[358881538,1745517045817,-137.87196599,0.00026059,2]
[358881539,1745517045853,-558.67472344,0.00026059,2]
[358881540,1745517045865,-928.0,0.00026059,2]
[358881546,1745517210894,429.4,0.00019103,2]
[358881551,1745517384759,5781.1,0.00030137,120]
[358881553,1745517594681,250.0,0.00017,2]
[358881554,1745517595733,300.0,0.00019,2]
[358881624,1745518231514,-307.39448736,0.000198,2]
[358881625,1745518231524,-300.0,0.00019879,2]
[358881626,1745518231533,-1200.0,0.00019879,2]
[358881627,1745518231543,-300.0,0.00019879,2]
[358881628,1745518231553,-500.0,0.0001988,2]
[358881629,1745518231564,-500.0,0.0001988,2]
[358881630,1745518231576,-500.0,0.0001988,2]
[358881631,1745518231586,-500.0,0.0001988,2]
[358881632,1745518231595,-500.0,0.0001988,2]
[358881633,1745518231604,-500.0,0.0001988,2]
[358881634,1745518231613,-500.0,0.0001988,2]
[358881635,1745518231623,-500.0,0.0001988,2]
[358881636,1745518231632,-500.0,0.0001988,2]
[358881637,1745518231642,-500.0,0.0001988,2]
[358881638,1745518231651,-500.0,0.0001988,2]
[358881639,1745518231660,-500.0,0.0001988,2]
[358881640,1745518231670,-500.0,0.0001988,2]
[358881641,1745518231679,-500.0,0.0001988,2]
[358881642,1745518231687,-500.0,0.0001988,2]
[358881643,1745518231697,-500.0,0.0001988,2]
[358881644,1745518231706,-500.0,0.0001988,2]
[358881645,1745518231715,-500.0,0.0001988,2]
[358881646,1745518231725,-500.0,0.0001988,2]
[358881647,1745518231735,-500.0,0.0001988,2]
[358881648,1745518231756,-500.0,0.0001988,2]
[358881649,1745518231769,-500.0,0.0001988,2]
[358881650,1745518231778,-602.66761195,0.0001988,2]
[358881651,1745518231790,-500.0,0.0001988,2]
[358881652,1745518231800,-500.0,0.0001988,2]
[358881653,1745518231810,-500.0,0.0001988,2]
[358881654,1745518231821,-250.0,0.00020331,2]
[358881655,1745518231833,-215.54,0.0002081,2]
[358881657,1745518231842,-15380.8463547,0.000209,3]
[358881658,1745518231852,-350.0,0.00021,2]
[358881660,1745518231862,-200.0,0.00021,2]
[358881662,1745518231872,-742.60783847,0.00021175,2]
[358881665,1745518231885,-5242.90326479,0.00021175,2]
[358881680,1745518232040,-1289.66112915,0.00021175,2]
[358881684,1745518232068,-851.0101586,0.00021175,2]
[358881727,1745518232488,-653.81192827,0.00021175,2]
[358881729,1745518232509,-487.88,0.000215,2]
[358881731,1745518232527,-420.0,0.00021649,2]
[358881733,1745518232539,-420.0,0.00021649,2]
[358881735,1745518232549,-812.8840226,0.00021753,2]
[358881737,1745518232560,-307.39448736,0.00021753,2]
[358881756,1745518237574,-559.72149004,0.00021753,2]
[358881757,1745518237584,-200.0,0.0002178,2]
[358881758,1745518237594,-200.0,0.0002178,2]
[358881759,1745518237603,-200.0,0.0002178,2]
[358881760,1745518237613,-250.0,0.00021876,2]
[358881761,1745518237622,-250.0,0.00021878,2]
[358881762,1745518237631,-144.26725065,0.00022003,3]
[358881763,1745518237643,-330.0,0.00022003,3]
[358881764,1745518237655,-5815.33981196,0.00022003,3]
[358881765,1745518237703,-519.750011,0.00022003,3]
[358881766,1745518237715,-395.77951,0.00022003,3]
[358881767,1745518237727,-3057.374,0.00022003,3]
[358881768,1745518237738,-576.22769678,0.00022003,3]
[358881769,1745518237749,-4542.10807402,0.00022003,3]
[358881770,1745518237759,-508.55860497,0.00022004,2]
[358881771,1745518237769,-506.72470226,0.000223,2]
[358881772,1745518237781,-500.0,0.00022636,2]
[358881773,1745518237791,-500.95167534,0.00022636,2]
[358881774,1745518237801,-500.0,0.00022636,2]
[358881775,1745518237810,-361.74088993,0.00022636,2]
[358881776,1745518237820,-507.77188451,0.00022636,2]
[358881778,1745518237830,-500.0,0.00022636,2]
[358881779,1745518237839,-224.13915892,0.00022744,2]
[358881780,1745518237849,-154.36900361,0.00022779,2]
[358881781,1745518237858,-161.1858119,0.00022933,2]
[358881782,1745518237868,-306.36923936,0.00022933,2]
[358881783,1745518237877,-400.0,0.00023,2]
[358881784,1745518237887,-1139.69783434,0.00023107,4]
[358881785,1745518237899,-265.7565572,0.00023107,4]
[358881786,1745518237910,-5869.39126525,0.00023107,4]
[358881787,1745518237921,-5511.19184947,0.00023107,4]
[358881788,1745518237949,-1100.67668887,0.00023107,4]
[358881809,1745518238247,-1494.13215928,0.00023107,4]
[358881810,1745518238257,-500.0,0.00023163,2]
[358881811,1745518238268,-2464.1643251,0.00023204,2]
[358881812,1745518238278,-372.78,0.00023211,2]
[358881813,1745518238288,-454.92351559,0.00023278,2]
[358881814,1745518238346,-997.81648441,0.00023278,2]
[358881815,1745518238356,-1000.0,0.00023352,2]
[358881816,1745518238366,-239.99820848,0.00023497,2]
[358881817,1745518238375,-200.0,0.000235,2]
[358881818,1745518238384,-300.27,0.00023542,2]
[358881819,1745518238394,-302.46,0.00023542,2]
[358881820,1745518238403,-218.82131712,0.00023576,2]
[358881824,1745518239969,-368.17868288,0.00023576,2]
[358881825,1745518239983,-323.0,0.00023576,2]
[358881826,1745518239994,-396.94824432,0.00023715,2]
[358881827,1745518240004,-2351.0,0.00023803,2]
[358881828,1745518240015,-803.99,0.00023836,2]
[358881829,1745518240027,-187.29,0.00023854,2]
[358881830,1745518240037,-18899.91196205,0.00023863,2]
[358881835,1745518242766,-370.12362479,0.00023863,2]
[358881836,1745518242926,-4629.96441316,0.00023863,2]
[358881837,1745518242935,-15380.84635441,0.0002421,5]
[358881838,1745518242946,-7984.32,0.00024432,2]
[358881839,1745518242955,-300.0,0.00024648,2]
[358881840,1745518242965,-593.51,0.00024658,2]
[358881841,1745518242975,-158.34,0.00024681,2]
[358881842,1745518242987,-450.0,0.00025,2]
[358881843,1745518242997,-2352.07409226,0.00025029,2]
[358881844,1745518243006,-169.0254,0.00025029,2]
[358881845,1745518243016,-308.2786,0.00025029,2]
[358881846,1745518243026,-507.0595,0.00025029,2]
[358881847,1745518243038,-1669.08,0.00025092,2]
[358881848,1745518243048,-20696.53,0.00025129,2]
[358881849,1745518243058,-250.0,0.00025129,2]
[358881850,1745518243068,-1000.0,0.00025129,2]
[358881851,1745518243078,-15380.84635441,0.00025314,5]
[358881852,1745518243088,-877.08,0.00025418,2]
[358881854,1745518243097,-372.78,0.00025475,2]
[358881855,1745518243107,-301.35,0.00025567,2]
[358881857,1745518243116,-823.0,0.00025675,2]
[358881858,1745518243126,-812.67055047,0.00025828,2]
[358881859,1745518243136,-200.0,0.00025898,2]
[358881860,1745518243146,-300.0,0.00026018,2]
[358881861,1745518243156,-3292.0,0.00026047,2]
[358881862,1745518243166,-4400.27866342,0.00026058,2]
[358881863,1745518243176,-181.86084968,0.00026059,36]
[358881864,1745518243187,-1000.0,0.00026271,2]
[358881866,1745518243196,-15380.84635441,0.00026417,6]
[358881867,1745518243206,-467.94260578,0.00026467,2]
[358881885,1745518245455,-1516.26013696,0.00026058,2]
[358881887,1745518245468,-683.87919475,0.00026058,2]
[358881889,1745518245478,-83.86739422,0.00026467,2]
[358881891,1745518245488,-155.21,0.00026572,2]
[358881893,1745518245498,-500.0,0.00027,2]
[358881895,1745518245507,-282.44259335,0.00027237,2]
[358881899,1745518245778,-2069.63149886,0.00027237,2]
[358881900,1745518245789,-187.29,0.00027278,2]
[358881901,1745518245799,-213.42998237,0.00027397,2]
[358881902,1745518245808,-344.10796308,0.00027397,2]
[358881903,1745518245818,-5260.16,0.00027397,2]
[358881904,1745518245828,-158.34,0.00027405,2]
[358881905,1745518245838,-1357.46,0.00027425,30]
[358881906,1745518245848,-15380.84635441,0.00027521,7]
[358881907,1745518245858,-372.78,0.00027739,2]
[358881908,1745518245867,-200.0,0.00027911,2]
[358881909,1745518245877,-1152.0,0.0002796,2]
[358881910,1745518245887,-704.12031234,0.00028115,2]
[358881911,1745518245896,-4609.0,0.00028502,2]
[358881912,1745518245906,-15380.84635441,0.00028624,8]
[358881913,1745518245916,-5264.55,0.00028664,2]
[358881914,1745518245926,-2938.469,0.00028667,2]
[358881916,1745518245935,-1000.0,0.00028674,2]
[358881917,1745518245945,-155.21,0.00028674,2]
[358881918,1745518245955,-158.34,0.00028755,2]
[358881919,1745518245966,-5260.16,0.00028767,2]
[358881920,1745518245983,-550.0,0.00029,2]
[358881922,1745518245992,-1000.0,0.0002919,2]
[358881924,1745518246003,-2352.07409221,0.00029445,2]
[358881925,1745518246012,-15380.84635441,0.00029728,8]
[358881926,1745518246023,-213.0,0.0003,2]
[358881927,1745518246033,-700.0,0.0003,11]
[358881928,1745518246043,-700.0,0.0003,11]
[358881929,1745518246053,-700.0,0.0003,11]
[358881930,1745518246063,-700.0,0.0003,11]
[358881931,1745518246073,-700.0,0.0003,11]
[358881933,1745518246083,-372.78,0.00030003,2]
[358881935,1745518246093,-5260.16,0.00030137,2]
[358881936,1745518246103,-155.21,0.00030368,2]
[358881937,1745518246113,-1433.0,0.0003045,2]
[358881938,1745518246123,-187.29,0.00030703,2]
[358881939,1745518246133,-15380.84635441,0.00030831,9]
[358881940,1745518246143,-110022.01297811,0.00031,2]
[358881967,1745518394861,204.06,0.00030137,120]
[358882007,1745519402226,200.0,0.0003013,120]
[358882011,1745519419869,250.0,0.00017,2]
[358882012,1745519420875,300.0,0.00019,2]
[358882016,1745519431670,-270.9412,0.0001983,2]
[358882017,1745519431680,-200.0,0.00019847,2]
[358882019,1745519431691,-200.0,0.00019865,2]
[358882021,1745519431701,-200.0,0.00019879,2]
[358882023,1745519431711,-1200.0,0.00019899,2]
[358882025,1745519431721,-500.0,0.00019899,2]
[358882027,1745519431730,-455.85195688,0.00019899,2]
[358882028,1745519431740,-500.0,0.00019899,2]
[358882029,1745519431750,-13467.7484481,0.000199,2]
[358882030,1745519431759,-16407.24605002,0.000199,2]
[358882099,1745519437717,-57.27259545,0.000199,2]
[358882100,1745519437728,-162.82791721,0.000199,2]
[358882101,1745519437738,-532.125843,0.000199,2]
[358882102,1745519437748,-4712.06344128,0.000199,2]
[358882104,1745519437931,-5276.70000006,0.000199,2]
[358882132,1745519439947,-265.13412846,0.000199,2]
[358882133,1745519439958,-2632.28,0.0001999,2]
[358882134,1745519439968,-4289.31047851,0.0001999,2]
[358882135,1745519439980,-5932.59280398,0.0001999,2]
[358882136,1745519439991,-2632.28,0.0001999,2]
[358882137,1745519440000,-300.0,0.00019999,2]
[358882138,1745519440011,-300.0,0.00019999,2]
[358882139,1745519440021,-500.0,0.00019999,2]
[358882140,1745519440030,-1439.52719605,0.0002,2]
[358882141,1745519440042,-18577.6464,0.0002,2]
[358882142,1745519440054,-2839.73942207,0.0002,2]
[358882143,1745519440067,-1401.6,0.0002,2]
[358882144,1745519440179,-664.90123927,0.0002,2]
[358882145,1745519440191,-4113.46240716,0.0002,2]
[358882146,1745519440203,-701.4250815,0.0002,2]
[358882160,1745519443173,-20883.49999921,0.0002,2]
[358882161,1745519443184,-33183.78218419,0.0002,2]
[358882191,1745519445817,-46364.63864274,0.0002,2]
[358882192,1745519445974,-263.04624999,0.0002,2]
[358882199,1745519815392,500.0,1.13e-06,2]
[358882200,1745519815692,500.0,1.13e-06,2]
[358882201,1745519816755,500.0,1.13e-06,2]
[358882202,1745519816867,500.0,1.13e-06,2]
[358882203,1745519817273,500.0,1.13e-06,2]
[358882204,1745519817837,146.56578392,1.13e-06,2]
[358882205,1745519817869,353.43421608,1.13e-06,2]
[358882206,1745519818127,500.0,1.13e-06,2]
[358882207,1745519818831,500.0,1.13e-06,2]
[358882208,1745519819362,500.0,1.13e-06,2]
[358882210,1745520115706,500.0,1.13e-06,2]
[358882363,1745520631862,-312.07,0.00019578,2]
[358882364,1745520631874,-17.21028392,0.00019659,2]
[358882365,1745520631888,-182.78971608,0.00019659,2]
[358882366,1745520631898,-514.21028392,0.00019898,2]
[358882367,1745520631910,-456.40958204,0.00019898,2]
[358882368,1745520631931,-229.38013404,0.00019898,2]
[358882369,1745520631941,-185.61986596,0.00019899,2]
[358882370,1745520632094,-3932.40403704,0.00019899,2]
[358882406,1745520638038,-2383.49999997,0.00019899,2]
[358882474,1745520640296,-167.49999703,0.00019899,2]
[358882475,1745520640307,-815.184,0.000199,2]
[358882476,1745520640316,-1093.6,0.000199,2]
[358882477,1745520640327,-601.58938881,0.000199,2]
[358882478,1745520640346,-394.32139738,0.000199,2]
[358882479,1745520640401,-18831.92319617,0.000199,2]
[358882490,1745520643618,-62328.622197,0.000199,2]
[358882491,1745520643628,-876.40632689,0.000199,2]
[358882492,1745520643638,-1313.57467261,0.000199,2]
[358882493,1745520643647,-163.6665593,0.000199,2]
[358882494,1745520643658,-635.87694913,0.000199,3]
[358882496,1745520643668,-1982.0,0.00019973,2]
[358882498,1745520643678,-239.5316193,0.00019973,2]
[358882500,1745520643689,-634.45862756,0.00019973,2]
[358882501,1745520643700,-300.0,0.00019999,2]
[358882502,1745520643710,-300.0,0.00019999,2]
[358882503,1745520643719,-300.0,0.00019999,2]
[358882504,1745520643728,-300.0,0.00019999,2]
[358882505,1745520643738,-300.0,0.00019999,2]
[358882507,1745520643748,-5368.88531002,0.0002,2]
[358882513,1745520646066,-55738.33856354,0.0002,2]
[358882514,1745520646076,-262840.22556941,0.0002,2]
[358882515,1745520646086,-318816.83487031,0.0002,2]
[358882516,1745520646098,-97102.9431194,0.0002,2]
[358882555,1745521243262,250.0,0.00017,2]
[358882556,1745521243929,300.0,0.00019,2]
[358882703,1745521731341,-566.0,0.000365,120]
[358882732,1745521832033,-586.43010423,0.000196,2]
[358882733,1745521832139,-982.09189577,0.000196,2]
[358882734,1745521832148,-175.608,0.000196,2]
[358882735,1745521832159,-200.0,0.00019653,2]
[358882736,1745521832169,-200.0,0.00019763,2]
[358882737,1745521832179,-296.50466061,0.0001981,2]
[358882738,1745521832189,-909.14867771,0.00019899,2]
[358882739,1745521832202,-290.85132229,0.00019899,2]
[358882740,1745521832211,-300.0,0.00019899,2]
[358882741,1745521832222,-169.0254,0.000199,2]
[358882742,1745521832232,-507.0595,0.000199,2]
[358882743,1745521832242,-298.57978086,0.000199,2]
[358882744,1745521832258,-9.69881914,0.000199,2]
[358882745,1745521832268,-8830.8044,0.000199,2]
[358882746,1745521832283,-366.8374164,0.000199,2]
[358882747,1745521832294,-2352.07409226,0.000199,2]
[358882748,1745521832304,-354.750562,0.000199,2]
[358882749,1745521832314,-584.2708846,0.000199,2]
[358882750,1745521832326,-423.91796608,0.000199,3]
[358882751,1745521832336,-11630.06110288,0.000199,2]
[358882752,1745521832347,-500.0,0.00019973,2]
[358882753,1745521832360,-594.5447301,0.00019973,2]
[358882754,1745521832371,-421.77552145,0.00019973,2]
[358882755,1745521832381,-300.0,0.00019999,2]
[358882756,1745521832392,-300.0,0.00019999,2]
[358882757,1745521832403,-812.67055047,0.00019999,2]
[358882758,1745521832415,-339.05602193,0.0002,2]
[358882759,1745521832425,-18997.80394744,0.0002,2]
[358882772,1745521838136,-5954.68161041,0.0002,2]
[358882773,1745521838344,-721.26328492,0.0002,2]
[358882818,1745521840338,-1076.21094039,0.0002,2]
[358882819,1745521840393,-2200.0,0.0002,2]
[358882820,1745521840406,-300.75060262,0.0002,2]
[358882830,1745521843264,-528.94097044,0.0002,2]
[358882831,1745521843421,-7645.54938001,0.0002,2]
[358882832,1745521843433,-119683.39281997,0.0002,2]
[358882833,1745521843443,-114.45915964,0.0002,2]
[358882834,1745521843456,-94396.86360514,0.0002,2]
[358882835,1745521843475,-934421.5349999,0.0002,2]
[358882836,1745521843633,-28019.95776523,0.0002,2]
[358882841,1745521846715,-883991.65366681,0.0002,2]
[358882842,1745521846727,-17999.81365759,0.0002,2]
[358882843,1745521846749,-5907.0996921,0.0002,2]
[358882844,1745521846760,-335.25777896,0.0002,2]
[358882845,1745521846797,-1885.51248912,0.0002,2]
[358882846,1745521846808,-8064.46457219,0.0002,2]
[358882847,1745521846819,-13179.96792869,0.0002,2]
[358882848,1745521979795,-500.0,0.000365,120]
[358882849,1745522200235,3414.93,0.00030137,120]
[358882850,1745522353278,7096.56578392,0.00019012,2]
[358882851,1745522353302,9866.73421608,0.00019012,2]
[358882852,1745522457257,133.26578392,0.00018954,2]
[358882853,1745522457278,66.73421608,0.00018954,2]
[358882854,1745522495126,9933.26578392,0.00018927,2]
[358882855,1745522495149,10000.0,0.00018927,2]
[358882856,1745522495171,10000.0,0.00018927,2]
[358882857,1745522495193,10000.0,0.00018927,2]
[358882858,1745522495215,10000.0,0.00018927,2]
[358882859,1745522495237,10000.0,0.00018927,2]
[358882860,1745522495262,10000.0,0.00018927,2]
[358882861,1745522495682,10000.0,0.00018927,2]
[358882862,1745522495705,8166.28421608,0.00018927,2]
[358882863,1745522533247,705.58,0.00017023,2]
[358882864,1745522598094,200.0,0.00018919,2]
[358882865,1745522603121,200.0,0.00018909,2]
[358882866,1745522655672,728.13578392,0.00018951,2]
[358882867,1745522655702,271.86421608,0.00018951,2]
[358882868,1745522661338,9728.13578392,0.00018951,2]
[358882869,1745522661360,4233.80421608,0.00018951,2]
[358882870,1745522688880,193.02,0.00018979,2]
[358882884,1745522850187,1000.0,0.00018992,2]
[358882905,1745523032424,-1042.8,0.00019159,2]
[358882906,1745523032435,-200.0,0.00019173,2]
[358882907,1745523032445,-246.93441187,0.00019187,2]
[358882908,1745523032455,-632.42928543,0.00019209,2]
[358882909,1745523032465,-295.16837777,0.00019287,2]
[358882910,1745523032591,-410.41162223,0.00019287,2]
[358882911,1745523032601,-200.0,0.00019331,2]
[358882912,1745523032611,-189.32,0.00019465,2]
[358882913,1745523032621,-467.94,0.00019555,2]
[358882914,1745523032636,-877.08,0.00019631,2]
[358882915,1745523032646,-150.0,0.000197,2]
[358882917,1745523032656,-11217.76,0.000197,2]
[358882919,1745523032666,-150.99,0.000197,2]
[358882921,1745523032675,-999.99,0.000197,2]
[358882924,1745523032686,-508.0,0.00019726,2]
[358882926,1745523032695,-1200.0,0.00019733,2]
[358882928,1745523032705,-850.0,0.00019733,2]
[358882930,1745523032715,-300.0,0.00019733,2]
[358882931,1745523032724,-500.0,0.00019734,2]
[358882932,1745523032735,-500.0,0.00019734,2]
[358882933,1745523032744,-500.0,0.00019734,2]
[358882934,1745523032754,-500.0,0.00019734,2]
[358882936,1745523032764,-500.0,0.00019734,2]
[358882938,1745523032774,-500.0,0.00019734,2]
[358882940,1745523032784,-500.0,0.00019734,2]
[358882942,1745523032794,-500.0,0.00019734,2]
[358882944,1745523032804,-500.0,0.00019734,2]
[358882945,1745523032814,-500.0,0.00019734,2]
[358882947,1745523032824,-500.0,0.00019734,2]
[358882948,1745523032834,-500.0,0.00019734,2]
[358882949,1745523032843,-500.0,0.00019734,2]
[358882952,1745523032854,-500.0,0.00019734,2]
[358882954,1745523032864,-500.0,0.00019734,2]